fUST/lending_fUST_20240703
["ID","MTS","AMOUNT","RATE_DAILY","PERIOD"]
[330973637,1719977443785,-1010.88,0.00014024,2]
[330973639,1719977443795,-500.0,0.00014024,2]
[330973641,1719977443804,-1162.0,0.00014024,2]
[330973642,1719977443815,-514.14977812,0.00014024,2]
[330973645,1719977443825,-500.0,0.00014024,2]
[330973647,1719977443835,-522.17,0.00014024,2]
[330973649,1719977443845,-500.0,0.00014024,2]
[330973651,1719977443855,-3557.02,0.00014024,2]
[330973653,1719977443864,-2375.17,0.00014024,2]
[330973655,1719977443874,-500.0,0.00014024,2]
[330973657,1719977443883,-500.0,0.00014024,2]
[330973659,1719977443893,-503.93291052,0.00014024,2]
[330973661,1719977443902,-500.0,0.00014024,2]
[330973663,1719977443911,-515.46016823,0.00014024,2]
[330973665,1719977443921,-500.0,0.00014024,2]
[330973667,1719977443930,-297.13141443,0.00014024,2]
[330973669,1719977443940,-500.0,0.00014024,2]
[330973671,1719977443951,-500.0,0.00014024,2]
[330973673,1719977443962,-200.5604997,0.00014024,2]
[330973675,1719977443974,-928.42,0.00014024,2]
[330973677,1719977443983,-500.0,0.00014024,2]
[330973679,1719977443993,-500.0,0.00014024,2]
[330973680,1719977444002,-500.0,0.00014024,2]
[330973681,1719977444012,-502.42508031,0.00014024,2]
[330973682,1719977444021,-1447.76,0.00014024,2]
[330973683,1719977444031,-683.97,0.00014024,2]
[330973684,1719977444040,-500.0,0.00014024,2]
[330973685,1719977444049,-500.0,0.00014024,2]
[330973686,1719977444059,-151.0,0.00014024,2]
[330973687,1719977444068,-1056.48,0.00014024,2]
[330973688,1719977444078,-500.0,0.00014024,2]
[330973689,1719977444088,-500.0,0.00014024,2]
[330973690,1719977444097,-500.0,0.00014024,2]
[330973691,1719977444107,-500.0,0.00014024,2]
[330973692,1719977444116,-4986.0,0.00014024,2]
[330973693,1719977444125,-243.67205876,0.00014024,2]
[330973694,1719977444135,-500.0,0.00014024,2]
[330973695,1719977444144,-500.0,0.00014024,2]
[330973700,1719977444153,-629.9061352,0.00014024,2]
[330973704,1719977444163,-500.0,0.00014024,2]
[330973708,1719977444173,-500.0,0.00014024,2]
[330973710,1719977444183,-627.75,0.00014024,2]
[330973713,1719977444193,-500.0,0.00014024,2]
[330973717,1719977444206,-507.61461711,0.00014024,2]
[330973719,1719977444216,-151.0,0.00014024,2]
[330973721,1719977444225,-505.50461532,0.00014024,2]
[330973723,1719977444235,-615.42,0.00014024,2]
[330973724,1719977444246,-2320.59,0.00014024,2]
[330973725,1719977444255,-500.0,0.00014024,2]
[330973726,1719977444265,-640.94,0.00014024,2]
[330973727,1719977444275,-500.0,0.00014024,2]
[330973728,1719977444285,-501.33705606,0.00014024,2]
[330973729,1719977444296,-845.29,0.00014024,2]
[330973730,1719977444306,-9102.54,0.00014024,2]
[330973731,1719977444315,-500.0,0.00014024,2]
[330973732,1719977444324,-151.0,0.00014024,2]
[330973733,1719977444334,-1992.28,0.00014024,2]
[330973734,1719977444344,-151.0,0.00014024,2]
[330973735,1719977444353,-504.84568023,0.00014024,2]
[330973736,1719977444366,-2374.3,0.00014024,2]
[330973737,1719977444376,-151.0,0.00014024,2]
[330973738,1719977444385,-151.0,0.00014024,2]
[330973739,1719977444395,-1225.83,0.00014024,2]
[330973740,1719977444404,-500.0,0.00014024,2]
[330973741,1719977444414,-500.0,0.00014024,2]
[330973742,1719977444423,-500.0,0.00014024,2]
[330973743,1719977444432,-500.0,0.00014024,2]
[330973744,1719977444441,-901.75,0.00014024,2]
[330973745,1719977444453,-500.0,0.00014024,2]
[330973746,1719977444462,-234.7322093,0.00014025,2]
[330973747,1719977444472,-500.0,0.00014025,2]
[330973748,1719977444482,-516.75881428,0.00014025,2]
[330973749,1719977444491,-495.68467722,0.00014025,2]
[330973750,1719977444501,-502.12972364,0.00014025,2]
[330973751,1719977444510,-218.69712036,0.00014025,2]
[330973752,1719977444519,-500.0,0.00014025,2]
[330973753,1719977444530,-500.0,0.00014025,2]
[330973754,1719977444539,-500.0,0.00014025,2]
[330973756,1719977444549,-500.0,0.00014025,2]
[330973758,1719977444558,-500.0,0.00014025,2]
[330973759,1719977444570,-500.0,0.00014025,2]
[330973761,1719977444580,-500.0,0.00014025,2]
[330973763,1719977444589,-504.91218916,0.00014025,2]
[330973765,1719977444599,-500.0,0.00014025,2]
[330973767,1719977444610,-503.71729836,0.00014025,2]
[330973769,1719977444620,-500.0,0.00014025,2]
[330973771,1719977444629,-500.0,0.00014025,2]
[330973773,1719977444639,-500.0,0.00014025,2]
[330973775,1719977444652,-599.16,0.00014025,2]
[330973777,1719977444661,-500.0,0.00014025,2]
[330973779,1719977444671,-500.0,0.00014025,2]
[330973781,1719977444681,-500.0,0.00014025,2]
[330973783,1719977444691,-500.0,0.00014025,2]
[330973784,1719977444703,-500.0,0.00014025,2]
[330973786,1719977444713,-500.0,0.00014025,2]
[330973788,1719977444722,-500.0,0.00014025,2]
[330973790,1719977444732,-500.0,0.00014025,2]
[330973792,1719977444742,-500.0,0.00014025,2]
[330973794,1719977444751,-151.0,0.00014025,2]
[330973796,1719977444761,-219.529234,0.00014025,2]
[330973798,1719977444771,-500.0,0.00014025,2]
[330973800,1719977444780,-226.03824391,0.00014025,2]
[330973802,1719977444789,-3766.35,0.00014025,2]
[330973804,1719977444798,-500.0,0.00014025,2]
[330973806,1719977444809,-1065.65,0.00014025,2]
[330973808,1719977444820,-500.0,0.00014025,2]
[330973810,1719977444831,-500.0,0.00014025,2]
[330973812,1719977444840,-500.0,0.00014025,2]
[330973814,1719977444850,-500.0,0.00014025,2]
[330973816,1719977444860,-269.35415201,0.00014025,2]
[330973818,1719977444870,-151.0,0.00014025,2]
[330973820,1719977444879,-152.399416,0.00014025,2]
[330973822,1719977444888,-391.24533982,0.00014025,2]
[330973824,1719977444898,-156.474123,0.00014025,2]
[330973826,1719977444907,-1462.97,0.00014025,2]
[330973828,1719977444916,-503.06333098,0.00014025,2]
[330973830,1719977444926,-500.0,0.00014025,2]
[330973832,1719977444935,-500.0,0.00014025,2]
[330973834,1719977444945,-568.06,0.00014025,2]
[330973836,1719977444955,-500.0,0.00014025,2]
[330973838,1719977444964,-500.0,0.00014025,2]
[330973840,1719977444972,-506.32620079,0.00014025,2]
[330973843,1719977444982,-502.53157898,0.00014025,2]
[330973845,1719977444991,-500.0,0.00014025,2]
[330973847,1719977445002,-508.96155462,0.00014025,2]
[330973849,1719977445011,-151.0,0.00014025,2]
[330973851,1719977445021,-151.0,0.00014025,2]
[330973853,1719977445031,-151.0,0.00014025,2]
[330973855,1719977445040,-151.0,0.00014025,2]
[330973857,1719977445049,-151.0,0.00014025,2]
[330973859,1719977445059,-151.0,0.00014025,2]
[330973861,1719977445068,-522.13314789,0.00014025,2]
[330973863,1719977445077,-151.0,0.00014025,2]
[330973865,1719977445086,-151.0,0.00014025,2]
[330973867,1719977445095,-151.0,0.00014025,2]
[330973869,1719977445104,-151.0,0.00014025,2]
[330973871,1719977445113,-151.0,0.00014025,2]
[330973873,1719977445122,-151.0,0.00014025,2]
[330973875,1719977445131,-151.0,0.00014025,2]
[330973877,1719977445140,-500.0,0.00014025,2]
[330973879,1719977445149,-587.35,0.00014025,2]
[330973881,1719977445158,-500.0,0.00014025,2]
[330973883,1719977445167,-500.0,0.00014025,2]
[330973885,1719977445176,-500.0,0.00014025,2]
[330973887,1719977445186,-151.0,0.00014025,2]
[330973889,1719977445197,-151.0,0.00014025,2]
[330973891,1719977445206,-151.0,0.00014025,2]
[330973893,1719977445215,-239.531989,0.00014025,2]
[330973895,1719977445224,-155.549979,0.00014025,2]
[330973897,1719977445234,-151.0,0.00014025,2]
[330973898,1719977445243,-152.84118,0.00014025,2]
[330973900,1719977445252,-500.0,0.00014025,2]
[330973902,1719977445261,-500.0,0.00014025,2]
[330973905,1719977445272,-500.0,0.00014025,2]
[330973906,1719977445281,-500.0,0.00014025,2]
[330973908,1719977445290,-151.0,0.00014025,2]
[330973910,1719977445299,-151.0,0.00014025,2]
[330973913,1719977445309,-151.0,0.00014025,2]
[330973914,1719977445318,-151.0,0.00014025,2]
[330973916,1719977445327,-151.0,0.00014025,2]
[330973918,1719977445337,-241.124047,0.00014025,2]
[330973920,1719977445346,-500.0,0.00014025,2]
[330973922,1719977445355,-158.460122,0.00014025,2]
[330973924,1719977445364,-239.71196794,0.00014025,2]
[330973926,1719977445374,-500.0,0.00014025,2]
[330973928,1719977445383,-500.0,0.00014025,2]
[330973929,1719977445393,-500.0,0.00014025,2]
[330973931,1719977445403,-500.0,0.00014025,2]
[330973933,1719977445412,-596.35,0.00014025,2]
[330973935,1719977445421,-158.248669,0.00014025,2]
[330973937,1719977445430,-500.0,0.00014025,2]
[330973939,1719977445440,-503.55497453,0.00014025,2]
[330973941,1719977445450,-500.0,0.00014025,2]
[330973943,1719977445460,-500.0,0.00014025,2]
[330973945,1719977445468,-500.0,0.00014025,2]
[330973947,1719977445477,-503.99146708,0.00014025,2]
[330973949,1719977445487,-1418.48,0.00014025,2]
[330973951,1719977445496,-504.04821642,0.00014025,2]
[330973953,1719977445505,-7769.27,0.00014025,2]
[330973955,1719977445515,-500.0,0.00014025,2]
[330973957,1719977445524,-504.5,0.00014025,2]
[330973959,1719977445534,-506.30360557,0.00014025,2]
[330973961,1719977445544,-151.0,0.00014025,2]
[330973963,1719977445553,-151.0,0.00014025,2]
[330973965,1719977445568,-151.0,0.00014025,2]
[330973967,1719977445577,-151.0,0.00014025,2]
[330973969,1719977445586,-151.0,0.00014025,2]
[330973971,1719977445596,-151.0,0.00014025,2]
[330973973,1719977445606,-151.0,0.00014025,2]
[330973975,1719977445615,-151.0,0.00014025,2]
[330973977,1719977445625,-151.0,0.00014025,2]
[330973979,1719977445634,-151.0,0.00014025,2]
[330973990,1719977445647,-500.0,0.00014025,2]
[330973991,1719977445804,-151.0,0.00014025,2]
[330973992,1719977445813,-151.0,0.00014025,2]
[330973993,1719977445823,-168.378676,0.00014025,2]
[330973994,1719977445833,-500.0,0.00014025,2]
[330973995,1719977445842,-151.0,0.00014025,2]
[330973996,1719977445851,-151.0,0.00014025,2]
[330973997,1719977445860,-164.687802,0.00014025,2]
[330973998,1719977445869,-510.87469844,0.00014025,2]
[330973999,1719977445878,-364.18846524,0.00014025,2]
[330974000,1719977445887,-500.0,0.00014025,2]
[330974001,1719977445897,-1002.38,0.00014025,2]
[330974002,1719977445906,-500.0,0.00014025,2]
[330974003,1719977445915,-430.44242618,0.00014025,2]
[330974004,1719977445924,-505.8251321,0.00014025,2]
[330974005,1719977445933,-824.26,0.00014025,2]
[330974006,1719977445942,-500.0,0.00014026,2]
[330974007,1719977445952,-500.0,0.00014026,2]
[330974008,1719977445961,-500.0,0.00014026,2]
[330974009,1719977445971,-500.0,0.00014026,2]
[330974010,1719977445979,-500.0,0.00014026,2]
[330974011,1719977445988,-500.0,0.00014026,2]
[330974012,1719977445998,-606.09722878,0.00014026,2]
[330974013,1719977446007,-500.0,0.00014026,2]
[330974014,1719977446016,-514.35601183,0.00014026,2]
[330974015,1719977446026,-500.0,0.00014026,2]
[330974016,1719977446035,-570.31,0.00014026,2]
[330974017,1719977446044,-501.38228752,0.00014026,2]
[330974018,1719977446053,-500.0,0.00014026,2]
[330974019,1719977446063,-500.0,0.00014026,2]
[330974020,1719977446071,-500.0,0.00014026,2]
[330974021,1719977446080,-717.2,0.00014026,2]
[330974022,1719977446089,-500.0,0.00014026,2]
[330974023,1719977446098,-500.0,0.00014026,2]
[330974024,1719977446107,-849.1,0.00014026,2]
[330974025,1719977446117,-1462.97,0.00014026,2]
[330974026,1719977446126,-1462.97,0.00014026,2]
[330974027,1719977446135,-500.0,0.00014026,2]
[330974028,1719977446144,-500.0,0.00014026,2]
[330974029,1719977446153,-504.33517327,0.00014026,2]
[330974030,1719977446162,-625.7,0.00014026,2]
[330974031,1719977446171,-500.0,0.00014026,2]
[330974032,1719977446180,-151.0,0.00014026,2]
[330974033,1719977446190,-151.0,0.00014026,2]
[330974034,1719977446200,-151.0,0.00014026,2]
[330974035,1719977446209,-204.96165,0.00014026,2]
[330974036,1719977446218,-500.0,0.00014026,2]
[330974037,1719977446227,-735.84,0.00014026,2]
[330974038,1719977446236,-500.0,0.00014026,2]
[330974039,1719977446245,-500.0,0.00014026,2]
[330974040,1719977446254,-500.0,0.00014026,2]
[330974041,1719977446263,-500.0,0.00014026,2]
[330974042,1719977446272,-500.0,0.00014026,2]
[330974043,1719977446281,-500.0,0.00014026,2]
[330974044,1719977446290,-151.0,0.00014026,2]
[330974045,1719977446299,-151.0,0.00014026,2]
[330974046,1719977446308,-349.58101337,0.00014027,2]
[330974047,1719977446317,-558.92,0.00014027,2]
[330974048,1719977446325,-882.69,0.00014027,2]
[330974049,1719977446334,-500.0,0.00014027,2]
[330974050,1719977446344,-500.0,0.00014027,2]
[330974052,1719977446354,-500.0,0.00014027,2]
[330974053,1719977446363,-500.0,0.00014027,2]
[330974054,1719977446373,-500.0,0.00014027,2]
[330974055,1719977446382,-500.0,0.00014027,2]
[330974056,1719977446391,-12841.08,0.00014027,2]
[330974057,1719977446399,-500.0,0.00014027,2]
[330974058,1719977446408,-737.91,0.00014027,2]
[330974059,1719977446418,-1462.97,0.00014028,2]
[330974060,1719977446426,-1327.09,0.00014028,2]
[330974061,1719977446436,-892.61,0.00014028,2]
[330974063,1719977446445,-4261.32046061,0.00014028,2]
[330974065,1719977446461,-2053.67953939,0.00014028,2]
[330974067,1719977446470,-2983.11920435,0.00014029,2]
[330974070,1719977446479,-966.46,0.00014029,2]
[330974072,1719977446489,-10174.44,0.00014029,2]
[330974074,1719977446499,-3381.42,0.00014029,2]
[330974076,1719977446509,-1462.97,0.0001404,2]
[330974078,1719977446519,-2105.93014463,0.00014048,2]
[330974080,1719977446527,-151.302,0.00014079,2]
[330974082,1719977446536,-877.0,0.00014079,2]
[330974085,1719977446546,-620.13110901,0.00014125,2]
[330974088,1719977446555,-500.0,0.00014297,2]
[330974091,1719977446567,-500.0,0.00014297,2]
[330974094,1719977446576,-929.52,0.00014298,2]
[330974096,1719977446586,-500.0,0.00014298,2]
[330974099,1719977446595,-1539.52,0.00014298,2]
[330974102,1719977446605,-446.53366337,0.00014298,2]
[330974105,1719977446615,-500.0,0.00014298,2]
[330974108,1719977446623,-500.0,0.00014298,2]
[330974111,1719977446632,-838.39,0.00014298,2]
[330974114,1719977446644,-1123.26,0.00014298,2]
[330974116,1719977446653,-500.0,0.00014298,2]
[330974118,1719977446663,-500.0,0.00014298,2]
[330974119,1719977446672,-500.0,0.00014298,2]
[330974121,1719977446681,-719.74,0.00014298,2]
[330974123,1719977446690,-11234.87,0.00014298,2]
[330974124,1719977446700,-1010.88,0.00014298,2]
[330974126,1719977446709,-520.8673746,0.00014298,2]
[330974128,1719977446719,-1162.0,0.00014298,2]
[330974130,1719977446727,-500.0,0.00014298,2]
[330974132,1719977446737,-522.17,0.00014298,2]
[330974133,1719977446746,-500.0,0.00014298,2]
[330974135,1719977446755,-3557.02,0.00014298,2]
[330974137,1719977446764,-2375.17,0.00014298,2]
[330974139,1719977446773,-500.0,0.00014298,2]
[330974141,1719977446782,-168.24116726,0.00014298,2]
[330974143,1719977446794,-343.54036892,0.00014298,2]
[330974145,1719977446804,-483.90986996,0.00014298,2]
[330974147,1719977446813,-500.0,0.00014298,2]
[330974149,1719977446823,-500.0,0.00014298,2]
[330974151,1719977446833,-500.0,0.00014298,2]
[330974153,1719977446842,-928.42,0.00014298,2]
[330974155,1719977446851,-500.0,0.00014298,2]
[330974157,1719977446860,-500.0,0.00014298,2]
[330974158,1719977446870,-500.0,0.00014298,2]
[330974160,1719977446879,-1447.76,0.00014298,2]
[330974162,1719977446888,-683.97,0.00014298,2]
[330974164,1719977446898,-511.52199404,0.00014298,2]
[330974166,1719977446907,-500.0,0.00014298,2]
[330974168,1719977446916,-1056.48,0.00014298,2]
[330974170,1719977446925,-162.79485697,0.00014298,2]
[330974172,1719977446935,-641.67502618,0.00014298,2]
[330974174,1719977446944,-500.0,0.00014298,2]
[330974176,1719977446954,-500.0,0.00014298,2]
[330974178,1719977446963,-4986.0,0.00014298,2]
[330974180,1719977446972,-500.0,0.00014298,2]
[330974182,1719977446982,-503.41472831,0.00014298,2]
[330974184,1719977446991,-500.0,0.00014298,2]
[330974186,1719977447000,-500.0,0.00014298,2]
[330974188,1719977447009,-627.75,0.00014298,2]
[330974190,1719977447018,-500.0,0.00014298,2]
[330974191,1719977447028,-615.42,0.00014298,2]
[330974193,1719977447039,-2320.59,0.00014298,2]
[330974195,1719977447048,-500.0,0.00014298,2]
[330974197,1719977447058,-640.94,0.00014298,2]
[330974199,1719977447067,-500.0,0.00014298,2]
[330974204,1719977447076,-845.29,0.00014298,2]
[330974207,1719977447085,-9102.54,0.00014298,2]
[330974209,1719977447095,-500.0,0.00014298,2]
[330974213,1719977447104,-1992.28,0.00014298,2]
[330974217,1719977447114,-2374.3,0.00014298,2]
[330974221,1719977447123,-1225.83,0.00014298,2]
[330974224,1719977447132,-500.0,0.00014298,2]
[330974226,1719977447142,-504.42264133,0.00014298,2]
[330974229,1719977447151,-500.0,0.00014298,2]
[330974231,1719977447160,-500.0,0.00014298,2]
[330974232,1719977447169,-901.75,0.00014298,2]
[330974234,1719977447178,-500.0,0.00014298,2]
[330974236,1719977447187,-500.0,0.00014299,2]
[330974238,1719977447198,-500.0,0.00014299,2]
[330974240,1719977447208,-511.33945608,0.00014299,2]
[330974242,1719977447219,-500.0,0.00014299,2]
[330974244,1719977447227,-500.0,0.00014299,2]
[330974246,1719977447239,-233.69994003,0.00014299,2]
[330974248,1719977447248,-500.0,0.00014299,2]
[330974250,1719977447257,-500.0,0.00014299,2]
[330974252,1719977447266,-599.16,0.00014299,2]
[330974254,1719977447275,-270.62246447,0.00014299,2]
[330974256,1719977447284,-500.0,0.00014299,2]
[330974258,1719977447293,-500.0,0.00014299,2]
[330974260,1719977447303,-505.62098399,0.00014299,2]
[330974262,1719977447311,-500.0,0.00014299,2]
[330974264,1719977447320,-151.56388012,0.00014299,2]
[330974266,1719977447330,-3766.35,0.00014299,2]
[330974268,1719977447338,-1065.65,0.00014299,2]
[330974270,1719977447347,-500.0,0.00014299,2]
[330974272,1719977447356,-636.29291571,0.00014299,2]
[330974274,1719977447365,-500.0,0.00014299,2]
[330974276,1719977447375,-1462.97,0.00014299,2]
[330974278,1719977447384,-506.89208918,0.00014299,2]
[330974279,1719977447394,-509.44862486,0.00014299,2]
[330974281,1719977447403,-568.06,0.00014299,2]
[330974283,1719977447412,-500.0,0.00014299,2]
[330974285,1719977447422,-500.0,0.00014299,2]
[330974287,1719977447431,-507.32921973,0.00014299,2]
[330974289,1719977447440,-500.0,0.00014299,2]
[330974291,1719977447454,-587.35,0.00014299,2]
[330974293,1719977447465,-500.0,0.00014299,2]
[330974295,1719977447474,-500.0,0.00014299,2]
[330974297,1719977447483,-500.0,0.00014299,2]
[330974299,1719977447492,-500.0,0.00014299,2]
[330974301,1719977447501,-500.0,0.00014299,2]
[330974303,1719977447510,-500.0,0.00014299,2]
[330974305,1719977447519,-500.0,0.00014299,2]
[330974307,1719977447527,-500.0,0.00014299,2]
[330974309,1719977447536,-500.0,0.00014299,2]
[330974310,1719977447545,-500.0,0.00014299,2]
[330974312,1719977447553,-500.0,0.00014299,2]
[330974314,1719977447564,-183.0439174,0.00014299,2]
[330974316,1719977447576,-596.35,0.00014299,2]
[330974318,1719977447586,-500.0,0.00014299,2]
[330974320,1719977447595,-500.0,0.00014299,2]
[330974322,1719977447606,-500.0,0.00014299,2]
[330974324,1719977447615,-500.0,0.00014299,2]
[330974326,1719977447624,-1418.48,0.00014299,2]
[330974328,1719977447633,-7769.27,0.00014299,2]
[330974330,1719977447643,-500.0,0.00014299,2]
[330974332,1719977447655,-500.0,0.00014299,2]
[330974334,1719977447664,-500.0,0.00014299,2]
[330974336,1719977447673,-500.0,0.00014299,2]
[330974338,1719977447681,-1002.38,0.00014299,2]
[330974339,1719977447690,-824.26,0.00014299,2]
[330974341,1719977447703,-500.0,0.000143,2]
[330974343,1719977447712,-500.0,0.000143,2]
[330974345,1719977447721,-500.0,0.000143,2]
[330974347,1719977447730,-500.0,0.000143,2]
[330974349,1719977447739,-500.0,0.000143,2]
[330974351,1719977447749,-500.0,0.000143,2]
[330974353,1719977447758,-457.35601219,0.000143,2]
[330974355,1719977447767,-500.0,0.000143,2]
[330974357,1719977447776,-570.31,0.000143,2]
[330974359,1719977447785,-500.0,0.000143,2]
[330974361,1719977447794,-500.0,0.000143,2]
[330974363,1719977447803,-500.0,0.000143,2]
[330974364,1719977447812,-717.2,0.000143,2]
[330974365,1719977447823,-500.0,0.000143,2]
[330974366,1719977447832,-500.0,0.000143,2]
[330974368,1719977447842,-849.1,0.000143,2]
[330974370,1719977447851,-1462.97,0.000143,2]
[330974372,1719977447860,-500.0,0.000143,2]
[330974373,1719977447869,-500.0,0.000143,2]
[330974375,1719977447878,-625.7,0.000143,2]
[330974376,1719977447887,-500.0,0.000143,2]
[330974377,1719977447896,-500.0,0.000143,2]
[330974378,1719977447906,-735.84,0.000143,2]
[330974379,1719977447915,-500.0,0.000143,2]
[330974380,1719977447925,-500.0,0.000143,2]
[330974381,1719977447934,-500.0,0.000143,2]
[330974382,1719977447943,-500.0,0.000143,2]
[330974383,1719977447954,-500.0,0.000143,2]
[330974384,1719977447963,-500.0,0.000143,2]
[330974385,1719977447972,-558.92,0.00014301,2]
[330974386,1719977447981,-882.69,0.00014301,2]
[330974387,1719977447990,-500.0,0.00014301,2]
[330974388,1719977447999,-500.0,0.00014301,2]
[330974389,1719977448009,-500.0,0.00014301,2]
[330974390,1719977448019,-500.0,0.00014301,2]
[330974391,1719977448028,-527.8029927,0.00014301,2]
[330974392,1719977448037,-1462.97,0.00014301,2]
[330974393,1719977448047,-500.0,0.00014301,2]
[330974394,1719977448056,-12841.08,0.00014301,2]
[330974395,1719977448065,-500.0,0.00014301,2]
[330974396,1719977448075,-737.91,0.00014301,2]
[330974397,1719977448085,-1327.09,0.00014302,2]
[330974398,1719977448094,-892.61,0.00014302,2]
[330974399,1719977448104,-277.91309193,0.00014302,2]
[330974451,1719977449013,-500.0,0.00014024,2]
[330974452,1719977449023,-500.0,0.00014298,2]
[330974453,1719977449033,-216.87,0.00014302,2]
[330974459,1719977531236,155.0,0.000136,2]
[330974492,1719977811145,155.53564505,9.999e-05,2]
[330974517,1719977863143,155.83711425,0.0001212,2]
[330974522,1719977916152,221.64635681,0.0001212,2]
[330974543,1719978453672,260.0,0.00025,120]
[330974544,1719978512226,156.51973133,9.999e-05,2]
[330974545,1719978522017,-300.0,0.00014021,2]
[330974546,1719978522049,-300.0,0.00014021,2]
[330974547,1719978522078,-108.21121162,0.00014022,2]
[330974548,1719978522122,-391.78878838,0.00014022,2]
[330974549,1719978522152,-316.42242324,0.00014022,2]
[330974550,1719978533769,256.33373575,9.999e-05,2]
[330974552,1719978547142,-300.0,0.00014021,2]
[330974553,1719978547172,-300.0,0.00014021,2]
[330974554,1719978547200,-136.53966008,0.00014022,2]
[330974555,1719978547251,-363.46033992,0.00014022,2]
[330974556,1719978547281,-289.69987032,0.00014022,2]
[330974557,1719978571892,-521.94531314,0.00014022,2]
[330974558,1719978571925,-242.38834435,0.00014022,2]
[330974559,1719978571959,-764.33365749,0.00014022,2]
[330974560,1719978597228,-794.90700379,0.00014022,2]
[330974561,1719978597278,-393.72099437,0.00014022,2]
[330974562,1719978597307,-401.18600942,0.00014022,2]
[330974609,1719978637999,-300.0,0.00014021,2]
[330974610,1719978638009,-300.0,0.00014021,2]
[330974611,1719978638018,-95.48082098,0.00014022,2]
[330974612,1719978638057,-3.3331696,0.00014022,2]
[330974613,1719978638066,-502.06048645,0.00014022,2]
[330974614,1719978638075,-500.0,0.00014022,2]
[330974615,1719978638084,-1128.85,0.00014022,2]
[330974616,1719978638093,-500.0,0.00014022,2]
[330974617,1719978638102,-575.44,0.00014022,2]
[330974618,1719978638113,-500.0,0.00014022,2]
[330974619,1719978638122,-500.0,0.00014022,2]
[330974620,1719978638131,-3420.67,0.00014022,2]
[330974621,1719978638140,-2282.42,0.00014022,2]
[330974622,1719978638149,-500.0,0.00014022,2]
[330974623,1719978638158,-424.6243159,0.00014022,2]
[330974624,1719978638167,-500.0,0.00014022,2]
[330974625,1719978638176,-500.0,0.00014022,2]
[330974627,1719978638186,-500.0,0.00014022,2]
[330974629,1719978638195,-903.6,0.00014022,2]
[330974631,1719978638205,-500.0,0.00014022,2]
[330974632,1719978638214,-1327.12,0.00014022,2]
[330974633,1719978638224,-968.44,0.00014022,2]
[330974634,1719978638233,-329.61332008,0.00014022,2]
[330974635,1719978638243,-4570.5,0.00014022,2]
[330974636,1719978638252,-500.0,0.00014022,2]
[330974637,1719978638261,-500.0,0.00014022,2]
[330974638,1719978638271,-116.01190572,0.00014022,2]
[330974665,1719978727509,155.0,0.0001372,2]
[330974667,1719978830627,274.50639194,0.00013922,2]
[330974697,1719979719431,-300.0,0.0001402,2]
[330974699,1719979719460,-445.34575615,0.00014021,2]
[330974700,1719979719493,-610.38251502,0.00014021,2]
[330974703,1719979744797,-300.0,0.0001402,2]
[330974704,1719979744828,-472.46032158,0.00014021,2]
[330974705,1719979744862,-587.46930414,0.00014021,2]